bitfinex/quotes_ETHUSD_20220119
["timestamp","ask_amount","ask_price","bid_price","bid_amount"]
[1642563951831,0.0096632,3106.9,3106.8,2.73519912]
[1642563954829,0.0096632,3106.9,3106.8,4.01472457]
[1642563955238,1.39492491,3107.5,3106.9,0.80493]
[1642563955677,0.00284212,3107.4,3106.9,0.80493]
[1642563956073,1.46297767,3107.0,3106.5,1.60974]
[1642563956272,1.46297767,3107.0,3106.3,1.60997]
[1642563956471,1.46297767,3107.0,3106.6,0.00170527]
[1642563956671,1.41297767,3107.0,3106.5,0.80503]
[1642563956873,1.41297767,3107.0,3106.7,0.00113684]
[1642563957072,1.41297767,3107.0,3106.6,0.00170527]
[1642563957270,1.41297767,3107.0,3106.4,0.00284211]
[1642563958074,1.41297767,3107.0,3106.4,0.80788211]
[1642563958475,1.41297767,3107.0,3106.5,0.00227369]
[1642563958677,0.00284212,3107.4,3106.5,0.80726899]
[1642563959078,0.0022737,3107.3,3106.6,0.00170527]
[1642563959533,0.83762162,3107.1,3106.6,0.00170527]
[1642563959734,0.00170527,3107.2,3106.6,0.00170527]
[1642563959936,3.2204,3107.4,3106.1,0.00454738]
[1642563960135,0.00113685,3107.1,3106.3,0.80502]
[1642563960335,1.14461211,3106.7,3106.3,2.06887168]
[1642563960543,1.14461211,3106.7,3106.4,0.00511581]
[1642563960736,0.80502,3107.2,3106.4,0.00511581]
[1642563960936,0.80502,3107.2,3106.4,0.81015071]
[1642563961135,0.80502,3107.2,3106.4,0.8050349]
[1642563961336,0.80502,3107.2,3106.5,0.00454739]
[1642563961542,41.99545261,3106.5,3106.0,2.87719997]
[1642563961757,41.99545261,3106.5,3105.8,1.126]
[1642563961939,1.36046318,3107.1,3105.5,3.8549]
[1642563961940,0.80524,3106.4,3106.1,0.00227369]
[1642563962337,1.00284212,3107.0,3105.6,0.00511581]
[1642563962538,0.00284212,3107.0,3106.0,0.80516]
[1642563962739,0.00227369,3106.9,3106.0,0.80516]
[1642563963176,1.36046318,3107.1,3106.0,0.80516]
[1642563963177,0.00170527,3106.8,3106.0,0.80516]
[1642563963573,0.00113685,3106.7,3106.5,1.47871842]
[1642563963778,0.00113685,3106.7,3106.6,2.1434408]
[1642563963974,0.00397896,3107.2,3106.5,1.47871842]
[1642563964174,6.19568,3108.1,3106.5,3.69592518]
[1642563964175,0.00113685,3106.7,3106.5,3.69592518]
[1642563964378,0.00341054,3107.1,3106.5,1.47871842]
[1642563964577,1.28777858,3107.7,3106.6,1.52265139]
[1642563964780,0.00284212,3107.0,3106.7,1.60976]
[1642563964979,2.09266858,3107.7,3106.8,1.6097552]
[1642563964980,0.00625266,3107.6,3106.8,1.6097552]
[1642563965279,0.00568423,3107.5,3106.8,2.97733587]
[1642563965481,3.8559,3108.4,3106.8,2.97733587]
[1642563965482,3.8559,3108.4,3106.9,6.35]
[1642563965684,0.00852635,3108.0,3106.9,0.00341054]
[1642563965894,0.00852635,3108.0,3107.0,0.00284211]
[1642563966080,0.0022737,3107.9,3107.6,0.80467]
[1642563966479,0.00170527,3107.8,3107.6,0.80467]
[1642563966917,0.00113685,3107.7,3107.6,0.80467]
[1642563967216,0.00113685,3107.7,3107.6,1.6093359]
[1642563967815,0.00113685,3107.7,3107.6,7.72047681]
[1642563968018,0.00113685,3107.7,3107.6,6.1593359]
[1642563969016,0.00113685,3107.7,3107.6,8.58488966]
[1642563969218,4.51359,3109.3,3108.0,0.80449]
[1642563969421,0.92688,3109.4,3108.3,0.8044713]
[1642563969625,0.00738951,3109.0,3108.3,0.8044713]
[1642563970023,0.00682108,3108.9,3108.3,0.8044713]
[1642563970423,7.42273566,3109.7,3108.6,0.80446]
[1642563970665,0.1232,3109.5,3108.8,0.8044216]
[1642563970873,41.1955784,3108.8,3108.6,0.80446]
[1642563971069,1.2015369,3108.8,3108.6,0.80446]
[1642563971473,0.8515369,3108.8,3108.6,0.80446]
[1642563971872,0.128904,3109.2,3108.6,0.80446]
[1642563972268,0.00170527,3109.1,3108.6,0.80446]
[1642563972469,9.08919493,3109.7,3108.6,0.80446]
[1642563972669,1.73139,3109.7,3108.7,0.00227369]
[1642563972869,0.00227369,3109.5,3108.7,0.00227369]
[1642563973070,41.99772631,3108.7,3108.6,0.80446]
[1642563973475,1.48997026,3109.1,3108.6,0.80446]
[1642563973770,0.00170527,3109.0,3108.6,0.80446]
[1642563974168,0.00113684,3108.9,3108.6,0.80446]
[1642563974618,0.00170527,3109.0,3108.6,0.80446]
[1642563975019,0.00113684,3108.9,3108.6,0.80446]
[1642563975421,0.00170527,3109.0,3108.6,0.80446]
[1642563975620,1.19277553,3109.1,3108.6,0.80446]
[1642563975820,1.19277553,3109.1,3108.7,0.052617]
[1642563976024,1.19277553,3109.1,3108.7,0.00170527]
[1642563976221,41.99829473,3108.7,3108.6,0.80446]
[1642563976424,42.0,3108.4,3107.8,0.80469]
[1642563976623,0.00170527,3109.0,3107.4,6.55599997]
[1642563976821,2.23568477,3109.0,3107.4,6.55599997]
[1642563977020,0.80475,3108.4,3107.5,0.0022737]
[1642563977221,1.33206054,3108.1,3107.5,1.47842792]
[1642563977423,0.00568423,3108.9,3107.5,1.47842792]
[1642563977424,0.00227369,3108.3,3107.6,0.80474]
[1642563977623,0.00227369,3108.3,3107.6,0.80644527]
[1642563977822,0.00170527,3108.2,3107.7,0.00113685]
[1642563978074,0.30649527,3108.2,3107.7,0.00113685]
[1642563978262,0.30649527,3108.2,3107.7,0.00284212]
[1642563978463,0.30649527,3108.2,3107.4,0.00454739]
[1642563978668,0.80481,3108.2,3107.4,0.00454739]
[1642563978863,1.40374402,3107.8,3107.4,0.00454739]
[1642563980670,1.91464402,3107.8,3107.4,0.00454739]
[1642563981274,2.71954402,3107.8,3107.4,0.00454739]
[1642563981920,2.71954402,3107.8,3107.2,0.00568424]
[1642563981921,0.80495,3107.6,3107.2,0.00568424]
[1642563982122,0.80495,3107.6,3107.0,0.00682108]
[1642563982535,0.387,3108.5,3107.1,0.111674]
[1642563982924,0.00113685,3108.4,3107.3,0.04680434]
[1642563983122,0.00113685,3108.4,3107.6,1.14856817]
[1642563983522,0.00113685,3108.4,3107.4,0.00454739]
[1642563983523,1.5313573,3108.0,3107.7,0.00284212]
[1642563983723,0.00113685,3108.4,3107.7,0.00284212]
[1642563983930,0.00113685,3108.4,3107.5,0.00397897]
[1642563984124,0.00113685,3108.4,3107.3,2.414068]
[1642563984125,0.00113685,3108.4,3107.4,0.00454739]
[1642563984324,0.00113685,3108.4,3107.5,1.60934]
[1642563984823,0.00113685,3108.4,3107.6,0.00341054]
[1642563985024,0.00113685,3108.4,3107.8,0.03657187]
[1642563985227,0.00113685,3108.4,3108.3,1.35553351]
[1642563985679,41.99829473,3107.9,3106.4,0.29421997]
[1642563985876,0.01363102,3108.4,3106.8,1.6095458]
[1642563985877,0.03800099,3107.8,3106.8,1.6095458]
[1642563986081,3.9412,3108.2,3106.7,5.15282108]
[1642563986277,0.80492,3107.8,3106.8,2.4145088]
[1642563986484,0.00113685,3108.1,3106.8,1.61589266]
[1642563986677,1.44251344,3108.1,3107.3,1.31669434]
[1642563986881,0.80485,3108.0,3107.3,1.31669434]
[1642563987077,0.80485,3108.0,3107.4,0.00284212]
[1642563987280,0.00113685,3108.1,3107.4,0.00284212]
[1642563988377,1.37175286,3108.1,3107.4,0.00284212]
[1642563988580,0.00605244,3108.0,3107.4,0.00284212]
[1642563989423,0.00605244,3108.0,3107.2,0.00397897]
[1642563990023,46.64602103,3107.2,3106.6,3.9206]
[1642563990223,2.04048482,3107.3,3106.5,6.06853157]
[1642563990224,0.80506,3107.1,3106.5,4.5551]
[1642563990526,0.80506,3107.1,3106.3,1.1837]
[1642563990527,0.80506,3107.1,3106.7,0.00284211]
[1642563990726,41.99715789,3106.7,3105.6,3.818]
[1642563990926,41.99715789,3106.7,3105.3,0.01262247]
[1642563990927,1.61045,3106.7,3105.3,0.01262247]
[1642563991128,1.61036,3106.8,3106.2,1.21604876]
[1642563991630,1.61201527,3107.0,3106.3,0.0022737]
[1642563991631,0.00170527,3107.0,3106.3,0.0022737]
[1642563992026,0.80623684,3106.9,3106.3,0.8073337]
[1642563992327,1.33843098,3106.8,3106.4,0.00170527]
[1642563993089,0.80517,3106.7,3106.0,0.80912897]
[1642563993490,0.80517,3106.7,3106.1,0.00341054]
[1642563994198,0.80517,3106.7,3106.0,0.00397897]
[1642563994392,0.80509,3107.0,3106.3,1.16652664]
[1642563994708,0.00113684,3106.9,3106.4,0.05803597]
[1642563994993,0.00511581,3107.6,3106.5,0.00113685]
[1642563995290,0.00454738,3107.5,3106.4,0.00170527]
[1642563995493,0.00454738,3107.5,3107.2,1.53799571]
[1642563995690,0.00397896,3107.4,3107.2,1.53799571]
[1642563995893,0.00397896,3107.4,3107.2,1.58352749]
[1642563996091,0.50726054,3108.1,3107.2,1.53799571]
[1642563996491,0.50726054,3108.1,3107.3,1.31690953]
[1642563996492,0.00397896,3108.0,3107.3,1.31690953]
[1642563996699,0.00397896,3108.0,3107.3,2.12169953]
[1642563996920,3.54100674,3109.5,3107.4,0.07537505]
[1642563996921,0.00341054,3107.9,3107.4,0.07537505]
[1642563997321,0.00284211,3107.8,3107.3,2.12169953]
[1642563997720,0.00227369,3107.7,3107.3,2.12169953]
[1642563997920,0.00227369,3107.7,3107.3,2.92644653]
[1642563998122,0.00170527,3107.6,3107.3,2.92644653]
[1642563998620,0.00113684,3107.5,3107.3,2.92644653]
[1642563998822,0.00113684,3107.5,3107.3,1.31690953]
[1642563999142,0.00568423,3108.3,3107.2,3.95222531]
[1642563999327,0.00568423,3108.3,3107.2,9.12172531]
[1642563999524,0.00511581,3108.2,3107.2,9.12172531]
[1642563999923,0.00454739,3108.1,3107.2,8.31695571]
[1642564000123,0.00454739,3108.1,3107.2,4.32375571]
[1642564000323,1.52493165,3108.0,3107.2,4.32375571]
[1642564000564,1.52493165,3108.0,3107.2,4.27375571]
[1642564000767,0.52834219,3108.0,3107.2,1.1763]
[1642564000969,0.8050453,3107.8,3107.3,0.00341054]
[1642564001164,0.8050453,3107.8,3106.7,3.6344]
[1642564001165,0.01982868,3107.1,3106.7,3.6344]
[1642564001365,2.48207633,3107.7,3106.7,3.6344]
[1642564001571,2.48207633,3107.7,3106.4,1.1281]
[1642564001572,0.00227369,3107.7,3106.8,0.00284212]
[1642564001766,1.12893461,3107.2,3106.8,0.00284212]
[1642564001971,0.00170527,3107.6,3106.6,0.8049354]
[1642564002164,0.00170527,3107.6,3106.6,0.80891437]
[1642564002363,0.00113684,3107.5,3106.7,0.00341054]
[1642564002764,0.80496,3107.5,3106.7,0.00341054]
[1642564002970,1.26390782,3107.3,3106.7,0.00341054]
[1642564003182,0.80496,3107.5,3106.8,0.80494]
[1642564003366,0.80493,3107.4,3106.8,0.80494]
[1642564003565,0.80493,3107.4,3106.9,0.0022737]
[1642564004429,0.80493,3107.4,3107.0,0.02595896]
[1642564004630,0.80493,3107.4,3106.9,0.0022737]
[1642564005325,0.04316994,3107.3,3106.9,0.0022737]
[1642564005533,0.80493,3107.4,3106.9,0.0022737]
[1642564005726,0.80493,3107.4,3106.7,0.00341054]
[1642564005927,3.21092587,3107.4,3106.6,0.00397897]
[1642564006126,1.51806611,3106.7,3106.5,0.00454739]
[1642564006331,1.51806611,3106.7,3105.9,3.9795]
[1642564006332,41.99545261,3106.5,3105.9,3.9795]
[1642564006527,0.01768499,3106.4,3105.8,1.2286]
[1642564006727,2.82977611,3106.7,3106.0,0.00284212]
[1642564006928,5.19213658,3106.7,3106.0,0.00284212]
[1642564007130,2.82977611,3106.7,3106.0,0.00284212]
[1642564007327,1.22607721,3106.2,3106.0,0.00284212]
[1642564007627,41.99715788,3106.0,3105.8,1.2286]
[1642564007826,2.03136721,3106.2,3105.5,1.1795]
[1642564008065,2.03136721,3106.2,3105.2,0.13819997]
[1642564008266,2.03136721,3106.2,3105.6,0.00227369]
[1642564008467,0.80529,3106.0,3105.6,0.00227369]
[1642564009067,4.38205272,3105.7,3105.6,0.00227369]
[1642564009269,0.80537,3105.9,3105.6,0.00227369]
[1642564009470,1.61075,3105.9,3105.6,0.00227369]
[1642564009870,0.80538,3105.9,3105.6,0.00227369]
[1642564010072,3.9187,3106.4,3105.6,0.00227369]
[1642564010273,1.43329723,3106.2,3105.6,0.00227369]
[1642564010473,3.45,3105.7,3105.6,0.00227369]
[1642564010674,3.45,3105.7,3105.0,1.1722]
[1642564010675,3.45,3105.7,3105.3,0.00397896]
[1642564010875,3.45,3105.7,3105.1,0.00511581]
[1642564011273,3.45,3105.7,3105.0,0.00568423]
[1642564011474,3.1561,3105.7,3105.0,0.00568423]
[1642564011673,1.1312595,3105.6,3105.0,0.00568423]
[1642564012251,3.1561,3105.7,3105.0,0.00568423]
[1642564012417,3.96141,3105.7,3105.0,0.00568423]
[1642564013115,4.76672,3105.7,3105.0,0.00568423]
[1642564013317,1.52451829,3105.5,3105.0,0.00568423]
[1642564013517,0.80534,3105.5,3105.0,1.19818739]
[1642564013720,4.76678,3105.7,3105.0,1.19818739]
[1642564013919,4.76678,3105.7,3105.1,0.00511581]
[1642564014522,0.01988252,3105.4,3105.1,0.00511581]
[1642564014725,0.80534,3105.5,3105.1,0.00511581]
[1642564014726,2.41616,3105.5,3105.1,0.00511581]
[1642564014923,2.41616,3105.5,3105.0,0.00568423]
[1642564015322,2.41616,3105.5,3104.7,0.0073895]
[1642564015568,0.80553,3104.9,3104.7,0.0073895]
[1642564015971,1.31978834,3105.0,3104.0,0.13819997]
[1642564015972,0.01671518,3104.6,3104.0,0.13819997]
[1642564016169,1.31978834,3105.0,3104.5,0.00113685]
[1642564016367,0.00113685,3104.9,3104.5,0.00113685]
[1642564016576,0.80556,3104.9,3104.5,0.00113685]
[1642564016773,3.8885,3105.6,3104.1,0.00454739]
[1642564016774,1.61092,3105.3,3104.1,0.00454739]
[1642564017569,0.80544,3105.2,3104.0,0.00511582]
[1642564017768,1.33772634,3105.1,3104.3,1.12278452]
[1642564017972,2.14434318,3105.1,3104.3,1.12278452]
[1642564018169,2.14434318,3105.1,3104.4,0.00284212]
[1642564018971,0.80549,3105.0,3104.4,0.00284212]
[1642564019425,1.61129,3104.9,3104.0,0.00511582]
[1642564020424,0.81958756,3104.8,3104.0,0.00511582]
[1642564020624,1.33880388,3104.3,3104.0,0.00511582]
[1642564021428,1.33880388,3104.3,3103.7,0.00682109]
[1642564021626,1.33880388,3104.3,3103.6,0.00738951]
[1642564021627,1.84803388,3104.3,3103.6,0.00738951]
[1642564021928,1.04230388,3104.3,3103.6,0.00738951]
[1642564022224,1.04230388,3104.3,3103.6,0.81298951]
[1642564022426,1.04230388,3104.3,3103.6,1.27024962]
[1642564022629,1.04230388,3104.3,3103.7,0.00682109]
[1642564023276,1.84800388,3104.3,3103.7,0.00682109]
[1642564023569,1.84800388,3104.3,3103.6,0.00738951]
[1642564024169,1.04230388,3104.3,3103.6,1.1761565]
[1642564024373,1.04230388,3104.3,3103.6,0.00738951]
[1642564024574,1.04230388,3104.3,3103.7,0.00682109]
[1642564024772,1.04230388,3104.3,3103.6,0.00738951]
[1642564025177,1.84800388,3104.3,3103.6,0.00738951]
[1642564025675,1.0,3105.3,3103.6,0.00738951]
[1642564025676,1.61131,3104.8,3103.7,0.07165489]
[1642564025874,1.61131,3104.8,3103.6,0.00738951]
[1642564026176,1.61131,3104.8,3103.7,0.01217272]
[1642564026377,0.00113684,3105.1,3103.8,1.03844996]
[1642564026576,0.00113684,3105.1,3103.8,0.16227266]
[1642564026831,1.25516181,3104.7,3103.9,1.31332143]
[1642564027120,1.25516181,3104.7,3104.0,0.00511582]
[1642564027321,1.25516181,3104.7,3104.1,1.22923933]
[1642564027622,1.25516181,3104.7,3104.2,0.00397897]
[1642564028220,1.25516181,3104.7,3103.9,0.00568424]
[1642564028822,1.25516181,3104.7,3104.1,0.80548]
[1642564029022,1.25516181,3104.7,3104.2,0.06239155]
[1642564029222,1.25516181,3104.7,3104.2,0.06637052]
[1642564029426,1.25516181,3104.7,3104.3,0.00341055]
[1642564029627,5.6,3104.6,3104.0,1.16368455]
[1642564029828,5.6,3104.6,3103.5,1.2363]
[1642564030030,5.6,3104.6,3104.1,0.00113684]
[1642564030031,0.00113685,3104.5,3104.1,0.00113684]
[1642564030430,41.99886316,3104.1,3103.5,1.2363]
[1642564030673,2.37662277,3104.0,3103.6,0.00284212]
[1642564030874,0.80584,3103.9,3103.6,0.00284212]
[1642564031075,42.0,3103.6,3103.5,0.00341054]
[1642564031374,2.33845534,3104.0,3103.5,0.00341054]
[1642564031579,2.53258534,3104.0,3103.4,0.01479709]
[1642564031880,6.35,3103.3,3102.7,0.7105]
[1642564032072,1.2195582,3102.8,3102.3,8.33085955]
[1642564032273,0.80603,3103.4,3102.3,1.32515955]
[1642564033081,0.80595,3103.4,3102.3,1.32515955]
[1642564033278,2.35879514,3103.4,3102.6,1.47006303]
[1642564033496,0.80595,3103.4,3102.3,1.32515955]
[1642564033680,5.37623256,3104.2,3102.3,1.32515955]
[1642564033681,0.00397896,3104.2,3103.1,1.18230711]
[1642564034078,0.00341054,3104.1,3103.2,0.00170527]
[1642564034324,1.61164,3104.0,3103.2,0.00170527]
[1642564034522,1.28410837,3103.8,3103.2,0.00170527]
[1642564034921,0.00113684,3103.7,3103.2,0.00170527]
[1642564035122,0.00113684,3103.7,3103.0,0.80575]
[1642564035422,0.00113684,3103.7,3103.1,0.0022737]
[1642564035728,0.00113684,3103.7,3103.2,0.04808536]
[1642564035924,0.00113684,3103.7,3103.4,0.02691017]
[1642564036122,0.00113684,3103.7,3103.4,0.83247577]
[1642564036524,0.00113684,3103.7,3103.6,5.45602]
[1642564036722,0.00113684,3103.7,3103.6,7.46573507]
[1642564036927,3.42473684,3104.9,3103.8,0.06034904]
[1642564037123,3.42473684,3104.9,3103.4,1.61114]
[1642564037325,0.00625266,3104.8,3103.4,1.61114]
[1642564037522,0.00625266,3104.8,3103.8,1.34496568]
[1642564037725,0.00568424,3104.7,3103.8,1.34496568]
[1642564037923,2.16506872,3104.3,3103.5,1.23623685]
[1642564038168,0.80573,3104.3,3103.5,1.23623685]
[1642564038471,0.00284212,3104.2,3103.5,0.00113685]
[1642564038868,0.0022737,3104.1,3102.7,0.01783341]
[1642564039069,0.0022737,3104.1,3103.4,1.36168636]
[1642564039269,0.00170527,3104.0,3103.4,1.36168636]
[1642564039470,0.00170527,3104.0,3103.5,0.00113684]
[1642564039772,0.00113685,3103.9,3103.5,0.00113684]
[1642564040170,0.8058,3104.0,3103.5,0.00113684]
[1642564040571,0.8058,3104.0,3102.9,1.1974]
[1642564040572,0.00113685,3103.9,3103.0,0.00397896]
[1642564040770,0.00113685,3103.9,3103.0,0.80973896]
[1642564041172,0.00113685,3103.9,3103.1,0.00341054]
[1642564041373,0.80585,3103.8,3103.1,0.00341054]
[1642564041833,0.00113685,3103.9,3103.0,0.00397896]
[1642564042024,1.40559468,3104.1,3103.0,0.00397896]
[1642564042025,1.11503153,3104.1,3103.0,0.00397896]
[1642564042223,1.18144498,3103.4,3103.0,0.00511581]
[1642564042420,2.39400536,3104.0,3103.0,0.00511581]
[1642564042421,1.61185,3104.0,3103.0,0.00511581]
[1642564042624,0.464,3104.2,3103.0,0.00511581]
[1642564042823,0.00227369,3104.3,3103.0,0.80577]
[1642564043022,0.00113685,3104.1,3103.0,0.81088581]
[1642564043224,6.35,3104.0,3102.7,1.10587312]
[1642564043422,0.80587,3103.8,3102.7,1.10587312]
[1642564043627,0.00511581,3103.9,3102.8,0.00113685]
[1642564043824,0.00397896,3103.7,3103.0,0.80578]
[1642564044022,0.01252805,3104.5,3103.0,0.80578]
[1642564044023,0.00454739,3103.8,3103.0,0.80578]
[1642564044225,0.00341054,3103.6,3103.1,1.68157101]
[1642564044428,0.00397896,3103.7,3103.6,1.46560162]
[1642564044626,0.80557,3104.9,3103.6,2.93707068]
[1642564045025,0.00852635,3104.5,3103.7,0.80563]
[1642564045427,0.00795793,3104.4,3103.7,0.80563]
[1642564045874,0.0073895,3104.3,3103.7,0.80563]
[1642564046076,0.0073895,3104.3,3103.7,0.80562]
[1642564046280,0.00682108,3104.2,3103.7,0.80562]
[1642564046682,0.00625266,3104.1,3103.7,0.80562]
[1642564047075,0.51533423,3104.8,3103.7,0.80562]
[1642564047275,0.51533423,3104.8,3103.8,0.00113685]
[1642564047486,0.00397897,3104.7,3103.8,0.00113685]
[1642564047683,0.80572,3104.5,3103.8,0.00113685]
[1642564047879,0.80572,3104.5,3103.6,0.00227369]
[1642564047880,2.38626294,3104.4,3103.6,0.00227369]
[1642564048178,2.38626294,3104.4,3103.2,0.00454738]
[1642564048179,0.80761527,3104.3,3103.2,0.00454738]
[1642564048377,1.47631658,3103.7,3103.2,0.00454738]
[1642564048575,2.4178101,3104.2,3103.2,0.00454738]
[1642564048576,4.78232668,3104.2,3103.2,0.00454738]
[1642564048780,2.41894695,3104.2,3103.2,0.00454738]
[1642564048977,0.8059,3103.8,3103.2,0.00454738]
[1642564049177,0.80588,3103.7,3103.2,0.00454738]
[1642564050029,1.61181,3103.7,3103.2,0.00454738]
[1642564051728,1.61181,3103.7,3102.8,0.81269108]
[1642564051929,1.61181,3103.7,3102.8,0.80587]
[1642564052127,1.31871,3103.7,3102.9,1.30282567]
[1642564052535,1.31871,3103.7,3103.0,0.00568423]
[1642564052731,0.51283,3103.7,3103.0,0.00568423]
[1642564052935,0.80612,3103.4,3103.1,2.737973]
[1642564053371,41.99545262,3103.2,3102.8,2.737973]
[1642564053571,1.61224,3103.6,3102.4,1.2458]
[1642564053572,0.03039471,3103.1,3102.4,1.2458]
[1642564053771,1.42908162,3103.1,3102.9,0.00170527]
[1642564054176,7.96216,3103.0,3102.9,0.00170527]
[1642564054378,2.58308162,3103.1,3102.2,1.5952182]
[1642564054575,1.0,3103.0,3102.3,0.00341055]
[1642564054979,1.89308162,3103.1,3102.3,0.00341055]
[1642564055176,1.89308162,3103.1,3102.3,1.50591303]
[1642564055376,1.89308162,3103.1,3102.3,0.00341055]
[1642564055581,6.35,3102.3,3101.0,2.38718928]
[1642564055781,0.01249973,3101.8,3101.0,1.63420781]
[1642564055982,0.01249973,3101.8,3100.2,1.91760775]
[1642564055983,6.4487,3101.7,3100.2,1.91760775]
[1642564056180,6.4487,3101.7,3100.3,4.59667331]
[1642564056181,6.9127,3101.7,3100.3,4.59667331]
[1642564056379,6.4487,3101.7,3101.4,1.27214607]
[1642564056584,6.3987,3101.7,3101.4,1.22214607]
[1642564056842,6.814,3101.6,3100.3,0.06496977]
[1642564057028,6.814,3101.6,3100.2,0.28339994]
[1642564057029,0.464,3101.6,3100.2,0.28339994]
[1642564057241,0.464,3101.6,3100.5,1.6127]
[1642564057429,0.1625,3101.6,3100.5,1.6127]
[1642564057733,0.1625,3101.6,3100.1,2.38718928]
[1642564057734,3.0,3100.7,3100.0,40.60757876]
[1642564057938,6.36268263,3101.4,3100.0,40.60757876]
[1642564057939,6.28833805,3100.6,3100.0,40.60757876]
[1642564058230,6.28833805,3100.6,3100.1,0.00284212]
[1642564058231,6.3987,3100.6,3100.1,0.00284212]
[1642564058631,41.99715788,3100.1,3100.0,41.9518198]
[1642564058835,41.99715788,3100.1,3100.0,34.03407876]
[1642564058836,6.814,3100.1,3100.0,34.03407876]
[1642564059031,6.814,3100.1,3099.8,1.83228833]
[1642564059032,0.464,3100.1,3099.8,1.83228833]
[1642564059338,6.35,3099.9,3098.7,2.5327141]
[1642564059536,6.86929563,3099.8,3098.7,2.5327141]
[1642564059737,6.8627,3099.8,3099.4,0.00284212]
[1642564060236,6.8627,3099.8,3098.3,0.057323]
[1642564060237,12.97239075,3099.5,3098.3,0.057323]
[1642564060441,0.01227828,3098.8,3098.3,0.057323]
[1642564060680,0.01227828,3098.8,3097.4,0.25580389]
[1642564060681,6.35,3098.3,3097.4,0.25580389]
[1642564060880,0.01276802,3097.8,3097.4,3.89e-06]
[1642564061074,0.01276802,3097.8,3096.5,5.9566]
[1642564061075,6.35,3097.7,3096.5,5.8566197]
[1642564061273,13.35203682,3097.7,3096.5,5.8566197]
[1642564061476,6.35,3097.3,3095.8,1.60035811]
[1642564061681,6.35,3097.3,3095.0,25.0]
[1642564061682,5.803,3096.5,3095.0,25.0]
[1642564061885,5.803,3096.5,3095.9,0.00397897]
[1642564061886,0.464,3096.4,3095.9,0.00397897]
[1642564062081,5.803,3096.1,3095.9,0.00397897]
[1642564062282,6.814,3096.0,3095.9,0.00397897]
[1642564062474,6.5171,3096.0,3095.9,0.00397897]
[1642564062674,12.9158,3096.0,3095.9,0.00397897]
[1642564062873,6.5658,3096.0,3095.5,0.00625266]
[1642564063076,6.5658,3096.0,3095.6,1.21796771]
[1642564063077,6.5158,3096.0,3095.6,1.21796771]
[1642564063476,6.5158,3096.0,3095.7,0.00511581]
[1642564063477,0.54615419,3096.0,3095.7,0.00511581]
[1642564063676,0.81136054,3097.2,3095.9,0.01282083]
[1642564063677,0.00341054,3097.2,3095.9,0.01282083]
[1642564063884,0.00341054,3097.2,3096.0,1.293772]
[1642564064079,0.00284211,3097.1,3096.8,0.05334524]
[1642564064354,0.00284211,3097.1,3096.9,5.85]
[1642564064551,1.12652484,3098.5,3097.0,1.16865243]
[1642564064746,0.464,3098.7,3097.0,0.46865243]
[1642564064948,0.07070193,3098.9,3098.8,1.53761084]
[1642564065148,7.47620193,3098.9,3098.8,1.53761084]
[1642564065349,7.518244,3098.9,3098.8,1.53761084]
[1642564065546,7.518244,3098.9,3098.8,2.98174944]
[1642564065748,7.4055,3098.9,3098.8,2.98174944]
[1642564065950,0.143,3100.0,3098.9,2.65]
[1642564066150,0.143,3100.0,3099.0,5.2042]
[1642564066348,0.143,3100.0,3099.9,1.26681551]
[1642564066551,0.1536,3100.7,3099.9,1.26681551]
[1642564066752,0.01136846,3100.0,3099.9,1.26681551]
[1642564066958,0.01136846,3100.0,3099.9,2.78843161]
[1642564067154,0.143,3101.5,3100.1,0.06737183]
[1642564067155,0.1232,3101.2,3100.1,0.06737183]
[1642564067458,0.00454739,3100.8,3100.1,4.8552]
[1642564067652,0.01226352,3100.5,3099.0,5.0527]
[1642564067849,0.01226352,3100.5,3100.2,0.00341054]
[1642564068082,0.01226352,3100.5,3099.1,0.0096632]
[1642564068282,0.01226352,3100.5,3099.0,5.0123632]
[1642564068283,6.814,3100.4,3099.0,5.0123632]
[1642564068481,1.09996571,3100.1,3099.5,1.37437978]
[1642564068684,0.464,3100.2,3099.5,1.37437978]
[1642564068882,0.00511581,3100.0,3099.5,1.37437978]
[1642564069086,0.00568424,3100.1,3099.5,1.37437978]
[1642564069286,0.00454739,3099.9,3099.5,1.67437978]
[1642564069485,0.00511581,3100.0,3099.5,1.67437978]
[1642564069693,0.136,3101.1,3099.5,1.37437978]
[1642564069694,0.00397897,3099.8,3099.5,1.37437978]
[1642564069887,0.00454739,3099.9,3099.5,1.37437978]
[1642564070093,0.00341054,3099.7,3099.5,1.37437978]
[1642564070288,0.00397897,3099.8,3099.5,1.37437978]
[1642564070590,0.00341054,3099.7,3099.5,1.37437978]
[1642564071087,0.00284212,3099.6,3099.0,5.0123632]
[1642564071285,0.00284212,3099.6,3099.1,2.65622942]
[1642564071491,0.0022737,3099.5,3099.2,0.388]
[1642564071690,0.0022737,3099.5,3099.4,6.50602]
[1642564071923,0.01276373,3101.1,3099.4,7.10602]
[1642564072123,0.143,3101.5,3099.5,3.06555248]
[1642564072325,0.01080005,3101.0,3100.9,2.98717309]
[1642564072522,2.62288687,3102.0,3100.9,2.98717309]
[1642564072722,6.4486,3101.9,3100.9,2.98717309]
[1642564072922,0.00227369,3101.4,3100.9,2.98717309]
[1642564073323,0.00170527,3101.3,3101.0,0.05773733]
[1642564073524,0.00170527,3101.3,3100.9,2.98717309]
[1642564073722,6.4486,3101.9,3100.9,2.98717309]
[1642564073723,0.00113685,3101.2,3100.9,2.98717309]
[1642564074130,6.4486,3101.9,3101.0,0.01295829]
[1642564074131,0.00454739,3101.8,3101.0,0.01295829]
[1642564074529,0.00397896,3101.7,3100.9,2.98717309]
[1642564074931,0.00341054,3101.6,3100.9,2.98717309]
[1642564075126,0.00341054,3101.6,3100.9,1.45839434]
[1642564075328,0.00284212,3101.5,3100.1,1.36509997]
[1642564075594,0.01489214,3101.5,3100.1,1.2269]
[1642564075780,3.24723478,3101.5,3100.2,0.00454739]
[1642564075980,3.34250584,3101.5,3100.2,0.00454739]
[1642564076181,3.0,3101.1,3100.2,0.00454739]
[1642564076387,1.3496631,3100.3,3099.6,0.00795793]
[1642564076687,0.01206409,3100.8,3099.6,0.00795793]
[1642564076882,6.5854,3101.0,3099.6,0.00795793]
[1642564076883,7.69672484,3101.0,3099.6,0.00795793]
[1642564077083,7.57512484,3101.0,3099.6,0.00795793]
[1642564077281,7.57512484,3101.0,3099.7,0.15602]
[1642564077484,7.57512484,3101.0,3100.8,2.31471268]
[1642564077683,7.57512484,3101.0,3100.8,1.15630577]
[1642564077684,6.151,3101.0,3100.8,1.15630577]
[1642564078086,0.00397896,3101.7,3100.9,4.9]
[1642564078281,0.00397896,3101.7,3100.9,5.34226815]
[1642564078582,0.00341054,3101.6,3100.9,5.288]